{"text_format":"1","workbook":"xlsx","n_sheets":3,"sheets":["Painel","Lista de Equipamentos","Dados da Tabela Dinâmica"],"not_rendered":{"charts":0,"images":0,"macros":1,"external_links":0,"defined_names":13,"comments":0,"pivot_tables":1},"unopened":[],"bounds":{"document_bytes":16777216,"sheet_cells":100000,"rows_first":2000,"rows_last":500,"rows_between":2000,"halvings":0,"cell_chars":16384,"cell_head_chars":4096},"cells_cut":0,"cells_raw":0,"read":"whole","date_system":"1900"}

{"sheet":"Painel","index":0,"n_rows":20,"n_cols":6,"rows_kept":20,"cut":false,"hidden":false,"merged":[]}
[null,"Painel"]
[]
[]
[null,null,null,null,null,"Contagem Total"]
[null,null,null,null,null,{"$f":"GETPIVOTDATA(\"Contagem\",'Dados da Tabela Dinâmica'!$B$11)","v":3}]
[]
[null,null,null,null,null,"Custo Mensal Total"]
[null,null,null,null,null,{"$f":"GETPIVOTDATA(\"Custo Mensal Total\",'Dados da Tabela Dinâmica'!$B$11)","v":1765.5943035068672}]
[]
[null,null,null,null,null,"Custos Operacionais"]
[null,null,null,null,null,{"$f":"GETPIVOTDATA(\"Custos Operacionais\",'Dados da Tabela Dinâmica'!$B$11)","v":605}]
[]
[null,null,null,null,null,"Depreciação Mensal"]
[null,null,null,null,null,{"$f":"GETPIVOTDATA(\"Depreciação Mensal\",'Dados da Tabela Dinâmica'!$B$11)","v":659.72222222222217}]
[]
[null,null,null,null,null,"Valor do Pagamento"]
[null,null,null,null,null,{"$f":"GETPIVOTDATA(\"Valor do Pagamento\",'Dados da Tabela Dinâmica'!$B$11)","v":1160.5943035068672}]
[]
[null,null,null,null,null,"Valor Atual"]
[null,null,null,null,null,{"$f":"GETPIVOTDATA(\"Valor Atual \",'Dados da Tabela Dinâmica'!$B$11)","v":37250.684931506854}]

{"sheet":"Lista de Equipamentos","index":1,"n_rows":9,"n_cols":20,"rows_kept":9,"cut":false,"hidden":false,"merged":[]}
[null,"Lista de Equipamentos"]
[]
[null,null,null,"Realçar quando os pagamentos mensais restantes forem inferiores a: ",20]
[]
[null,"Ativo ou\nNúmero de Série","Descrição do Item\n(Marca e Modelo)","Local","Condição","Fornecedor","Anos de\nServiço Restantes ","Valor Inicial","Entrada","Data da Compra\nou Leasing","Duração do Empréstimo\n(Anos)","Taxa do Empréstimo","Custos de\nOperação Mensais","Valor Esperado ao Final do Contrato","Pagamentos\nMensais Restantes","Pagamento Mensal","Custo\nMensal Total","Depreciação Anual\n(Linha Reta)","Depreciação Mensal\n(Linha Reta)","Valor Atual"]
[null,123,"Marca e Modelo 1","Filial principal","Bom","Local",5,30000,5000,"2011-01-15",4,0.1,200,20000,{"$f":"IFERROR(SUMPRODUCT(--(DAY(ROW(OFFSET($A$1,,,DATE(YEAR('Lista de Equipamentos'!$J6)+'Lista de Equipamentos'!$K6,MONTH('Lista de Equipamentos'!$J6)-1,DAY('Lista de Equipamentos'!$J6))-TODAY()))+DATE(YEAR('Lista de Equipamentos'!$J6)+'Lista de Equipamentos'!$K6,MONTH('Lista de Equipamentos'!$J6),DAY('Lista de Equipamentos'!$J6))-1)=DAY('Lista de Equipamentos'!$J6))),0)","v":25},{"$f":"IFERROR(-('Lista de Equipamentos'!$H$6:$H$8>0)*('Lista de Equipamentos'!$H$6:$H$8<>'Lista de Equipamentos'!$I$6:$I$8)*PMT('Lista de Equipamentos'!$L$6:$L$8/MonthsInYear,'Lista de Equipamentos'!$K$6:$K$8*MonthsInYear,'Lista de Equipamentos'!$H$6:$H$8-'Lista de Equipamentos'!$I$6:$I$8),0)","v":634.06458586867973},{"$f":"'Lista de Equipamentos'!$P6+'Lista de Equipamentos'!$M$6:$M$8","v":834.06458586867973},{"$f":"IFERROR(('Lista de Equipamentos'!$H$6:$H$8>0)*SLN('Lista de Equipamentos'!$H$6:$H$8,'Lista de Equipamentos'!$N$6:$N$8,'Lista de Equipamentos'!$K$6:$K$8),0)","v":2500},{"$f":"IFERROR('Lista de Equipamentos'!$R$6:$R$8/MonthsInYear,0)","v":208.33333333333334},{"$f":"IFERROR('Lista de Equipamentos'!$H$6:$H$8-('Lista de Equipamentos'!$R$6:$R$8*((TODAY()-'Lista de Equipamentos'!$J$6:$J$8)/DaysInYear)),0)","v":25273.972602739726}]
[null,234,"Marca e Modelo 2","Filial principal","Bom","Local",4,12500,1500,"2011-03-10",3,7.7499999999999999E-2,120,3000,{"$f":"IFERROR(SUMPRODUCT(--(DAY(ROW(OFFSET($A$1,,,DATE(YEAR('Lista de Equipamentos'!$J7)+'Lista de Equipamentos'!$K7,MONTH('Lista de Equipamentos'!$J7)-1,DAY('Lista de Equipamentos'!$J7))-TODAY()))+DATE(YEAR('Lista de Equipamentos'!$J7)+'Lista de Equipamentos'!$K7,MONTH('Lista de Equipamentos'!$J7),DAY('Lista de Equipamentos'!$J7))-1)=DAY('Lista de Equipamentos'!$J7))),0)","v":15},{"$f":"IFERROR(-('Lista de Equipamentos'!$H$6:$H$8>0)*('Lista de Equipamentos'!$H$6:$H$8<>'Lista de Equipamentos'!$I$6:$I$8)*PMT('Lista de Equipamentos'!$L$6:$L$8/MonthsInYear,'Lista de Equipamentos'!$K$6:$K$8*MonthsInYear,'Lista de Equipamentos'!$H$6:$H$8-'Lista de Equipamentos'!$I$6:$I$8),0)","v":343.43280007691891},{"$f":"'Lista de Equipamentos'!$P7+'Lista de Equipamentos'!$M$6:$M$8","v":463.43280007691891},{"$f":"IFERROR(('Lista de Equipamentos'!$H$6:$H$8>0)*SLN('Lista de Equipamentos'!$H$6:$H$8,'Lista de Equipamentos'!$N$6:$N$8,'Lista de Equipamentos'!$K$6:$K$8),0)","v":3166.6666666666665},{"$f":"IFERROR('Lista de Equipamentos'!$R$6:$R$8/MonthsInYear,0)","v":263.88888888888886},{"$f":"IFERROR('Lista de Equipamentos'!$H$6:$H$8-('Lista de Equipamentos'!$R$6:$R$8*((TODAY()-'Lista de Equipamentos'!$J$6:$J$8)/DaysInYear)),0)","v":6982.1917808219187}]
[null,345,"Marca e Modelo 2","Filial 1","Regular","Outro",1,10000,2500,"2010-09-15",4,0.08,285,1000,{"$f":"IFERROR(SUMPRODUCT(--(DAY(ROW(OFFSET($A$1,,,DATE(YEAR('Lista de Equipamentos'!$J8)+'Lista de Equipamentos'!$K8,MONTH('Lista de Equipamentos'!$J8)-1,DAY('Lista de Equipamentos'!$J8))-TODAY()))+DATE(YEAR('Lista de Equipamentos'!$J8)+'Lista de Equipamentos'!$K8,MONTH('Lista de Equipamentos'!$J8),DAY('Lista de Equipamentos'!$J8))-1)=DAY('Lista de Equipamentos'!$J8))),0)","v":21},{"$f":"IFERROR(-('Lista de Equipamentos'!$H$6:$H$8>0)*('Lista de Equipamentos'!$H$6:$H$8<>'Lista de Equipamentos'!$I$6:$I$8)*PMT('Lista de Equipamentos'!$L$6:$L$8/MonthsInYear,'Lista de Equipamentos'!$K$6:$K$8*MonthsInYear,'Lista de Equipamentos'!$H$6:$H$8-'Lista de Equipamentos'!$I$6:$I$8),0)","v":183.09691756126861},{"$f":"'Lista de Equipamentos'!$P8+'Lista de Equipamentos'!$M$6:$M$8","v":468.09691756126858},{"$f":"IFERROR(('Lista de Equipamentos'!$H$6:$H$8>0)*SLN('Lista de Equipamentos'!$H$6:$H$8,'Lista de Equipamentos'!$N$6:$N$8,'Lista de Equipamentos'!$K$6:$K$8),0)","v":2250},{"$f":"IFERROR('Lista de Equipamentos'!$R$6:$R$8/MonthsInYear,0)","v":187.5},{"$f":"IFERROR('Lista de Equipamentos'!$H$6:$H$8-('Lista de Equipamentos'!$R$6:$R$8*((TODAY()-'Lista de Equipamentos'!$J$6:$J$8)/DaysInYear)),0)","v":4994.5205479452052}]
[null,"Total",null,null,null,null,{"$f":"SUBTOTAL(101,'Lista de Equipamentos'!$G$6:$G$8)","v":3.3333333333333335},{"$f":"SUBTOTAL(109,'Lista de Equipamentos'!$H$6:$H$8)","v":52500},{"$f":"SUBTOTAL(109,'Lista de Equipamentos'!$I$6:$I$8)","v":9000},null,{"$f":"SUBTOTAL(101,'Lista de Equipamentos'!$K$6:$K$8)","v":3.6666666666666665},{"$f":"SUBTOTAL(101,'Lista de Equipamentos'!$L$6:$L$8)","v":8.5833333333333331E-2},{"$f":"SUBTOTAL(109,'Lista de Equipamentos'!$M$6:$M$8)","v":605},{"$f":"SUBTOTAL(109,'Lista de Equipamentos'!$N$6:$N$8)","v":24000},{"$f":"SUBTOTAL(101,'Lista de Equipamentos'!$O$6:$O$8)","v":20.333333333333332},{"$f":"SUBTOTAL(109,'Lista de Equipamentos'!$P$6:$P$8)","v":1160.5943035068672},{"$f":"SUBTOTAL(109,'Lista de Equipamentos'!$Q$6:$Q$8)","v":1765.5943035068672},{"$f":"SUBTOTAL(101,'Lista de Equipamentos'!$R$6:$R$8)","v":2638.8888888888887},{"$f":"SUBTOTAL(101,'Lista de Equipamentos'!$S$6:$S$8)","v":219.90740740740739},{"$f":"SUBTOTAL(109,'Lista de Equipamentos'!$T$6:$T$8)","v":37250.684931506854}]

{"sheet":"Dados da Tabela Dinâmica","index":2,"n_rows":15,"n_cols":8,"rows_kept":15,"cut":false,"hidden":true,"merged":[]}
[null,"Dados da Tabela Dinâmica"]
[null,"Esta planilha deve permanecer oculta. A alteração da estrutura da Tabela Dinâmica nesta planlha pode resultar em erros nas Segmentações de Dados do Painel."]
[]
[null,"Descrição do Item\n(Marca e Modelo)","(Tudo)"]
[null,"Local","(Tudo)"]
[null,"Condição","(Tudo)"]
[null,"Fornecedor","(Tudo)"]
[null,"Anos de\nServiço Restantes ","(Tudo)"]
[null,"Duração do Empréstimo\n(Anos)","(Tudo)"]
[]
[null,"Rótulos de Linha","Contagem","Custos Operacionais","Valor do Pagamento","Custo Mensal Total","Depreciação Mensal","Valor Atual "]
[null,123,1,200,634.06458586867973,834.06458586867973,208.33333333333334,25273.972602739726]
[null,234,1,120,343.43280007691891,463.43280007691891,263.88888888888886,6982.1917808219187]
[null,345,1,285,183.09691756126861,468.09691756126858,187.5,4994.5205479452052]
[null,"Total Geral",3,605,1160.5943035068672,1765.5943035068672,659.72222222222217,37250.684931506854]